bitfinex/quotes_SOLUSD_20250815
["timestamp","ask_amount","ask_price","bid_price","bid_amount"]
[1755273035555,17.81709477,185.41,185.35,17.81709477]
[1755273035860,26.0,185.41,185.36,17.81709477]
[1755273036039,26.0,185.41,185.38,17.81709477]
[1755273036241,23.26938379,185.45,185.39,17.81709477]
[1755273036629,31.45228902,185.45,185.38,6.09428401]
[1755273036835,31.45228902,185.45,185.42,14.05526437]
[1755273037140,31.45228902,185.45,185.4,14.05526437]
[1755273037352,31.45228902,185.45,185.41,14.05526437]
[1755273037740,31.45228902,185.45,185.36,5.3948942]
[1755273037937,14.05526437,185.41,185.33,0.7]
[1755273038261,26.0,185.42,185.33,14.05526437]
[1755273038444,5.39432516,185.38,185.33,14.05526437]
[1755273038633,26.0,185.44,185.37,14.05526437]
[1755273038838,26.0,185.43,185.38,14.05526437]
[1755273039037,5.39257981,185.44,185.39,14.05526437]
[1755273039250,26.0,185.43,185.38,14.75526437]
[1755273039535,19.44784418,185.44,185.38,14.75526437]
[1755273039735,26.06,185.45,185.42,14.05526437]
[1755273039736,0.06,185.45,185.42,14.05526437]
[1755273039965,0.06,185.45,185.44,14.05526437]
[1755273040467,0.06,185.45,185.44,20.14784418]
[1755273040669,0.06,185.45,185.44,0.7]
[1755273040876,0.06,185.45,185.42,14.05526437]
[1755273041051,0.06,185.45,185.44,14.75526437]
[1755273041235,0.06,185.45,185.44,0.7]
[1755273041440,0.06,185.45,185.44,14.75526437]
[1755273041640,0.06,185.45,185.44,0.7]
[1755273041865,0.06,185.45,185.44,14.75526437]
[1755273042244,0.06,185.45,185.41,0.53934523]
[1755273042450,0.06,185.45,185.44,19.44784418]
[1755273042947,0.06,185.45,185.44,20.14784418]
[1755273043579,0.06,185.45,185.44,20.68710216]
[1755273044272,0.06,185.45,185.44,14.75526437]
[1755273044564,0.06,185.45,185.4,0.7]
[1755273044748,0.06,185.45,185.4,46.7]
[1755273045069,0.76,185.45,185.4,46.7]
[1755273045249,14.05526437,185.43,185.4,46.7]
[1755273045774,14.05526437,185.41,185.33,0.66]
[1755273045954,14.05526437,185.39,185.34,46.66]
[1755273046152,14.05526437,185.4,185.34,61.37526437]
[1755273046346,14.05526437,185.37,185.34,46.66]
[1755273046554,5.39459561,185.38,185.34,46.66]
[1755273047169,0.66,185.42,185.34,61.37526437]
[1755273047364,14.05526437,185.4,185.34,61.37526437]
[1755273047870,31.39345234,185.41,185.35,14.05526437]
[1755273048071,14.05526437,185.38,185.34,46.66]
[1755273048453,5.39461617,185.37,185.34,46.66]
[1755273048851,19.44988054,185.37,185.34,46.66]
[1755273049055,5.39461617,185.37,185.34,46.66]
[1755273049262,19.44961425,185.38,185.34,46.66]
[1755273049574,31.39287062,185.43,185.35,0.66]
[1755273049778,3.54120148,185.42,185.3,0.69]
[1755273049966,14.05526437,185.38,185.31,46.48]
[1755273050270,14.05526437,185.39,185.33,14.05526437]
[1755273050579,14.05526437,185.34,185.31,46.46]
[1755273050879,19.45046264,185.35,185.31,46.46]
[1755273051569,40.05526437,185.41,185.34,14.05526437]
[1755273051772,14.05526437,185.39,185.34,14.05526437]
[1755273052077,14.05526437,185.4,185.34,14.05526437]
[1755273052260,40.05526437,185.41,185.35,14.05526437]
[1755273052464,26.0,185.41,185.36,14.05526437]
[1755273052662,5.39364796,185.41,185.36,14.05526437]
[1755273052968,8.93920927,185.41,185.37,46.36]
[1755273053146,8.93920927,185.41,185.37,60.41526437]
[1755273053147,8.93910302,185.41,185.37,60.41526437]
[1755273053343,8.93910302,185.41,185.37,46.36]
[1755273053344,3.54556131,185.41,185.37,46.36]
[1755273053580,19.44849228,185.42,185.37,46.36]
[1755273053581,5.39322791,185.42,185.37,60.41526437]
[1755273053774,3.54886201,185.42,185.38,0.66]
[1755273053980,5.39294267,185.43,185.38,0.66]
[1755273053981,5.39294267,185.43,185.4,14.05526437]
[1755273054443,8.94151226,185.44,185.39,14.71526437]
[1755273054647,8.94151226,185.44,185.41,14.05526437]
[1755273054648,3.54886201,185.44,185.41,14.05526437]
[1755273054850,0.06,185.45,185.41,14.71526437]
[1755273055062,5.45236099,185.45,185.42,46.22]
[1755273055477,0.06,185.45,185.42,60.27526437]
[1755273055675,0.06,185.45,185.43,14.05526437]
[1755273055892,0.06,185.45,185.44,14.05526437]
[1755273056396,0.06,185.45,185.44,14.71526437]
[1755273056783,0.06,185.47,185.46,14.05526437]
[1755273056964,0.06,185.47,185.46,14.59446419]
[1755273057168,0.06,185.49,185.46,15.25446419]
[1755273057369,0.06,185.5,185.48,14.05526437]
[1755273057668,0.06,185.5,185.47,46.82]
[1755273058004,0.06,185.5,185.48,0.66]
[1755273058168,0.06,185.5,185.49,14.05526437]
[1755273058367,0.06,185.5,185.47,46.16]
[1755273058694,0.06,185.5,185.49,14.05526437]
[1755273058926,0.06,185.5,185.47,46.16]
[1755273059071,0.06,185.5,185.49,14.05526437]
[1755273059467,0.06,185.5,185.47,46.16]
[1755273059693,0.06,185.5,185.49,14.05526437]
[1755273060378,0.06,185.5,185.47,46.16]
[1755273060577,0.06,185.5,185.49,14.05526437]
[1755273060885,0.06,185.5,185.49,19.44639057]
[1755273061084,0.06,185.5,185.49,20.10639057]
[1755273061288,0.06,185.6,185.52,26.0]
[1755273061487,0.06,185.6,185.57,14.05526437]
[1755273061808,0.06,185.6,185.57,60.09526437]
[1755273062106,0.06,185.6,185.59,14.05526437]
[1755273062515,0.2,185.62,185.61,26.0]
[1755273062719,6.04332727,185.76,185.62,18.85572675]
[1755273062898,3.54364411,185.78,185.63,1.19870602]
[1755273063216,20.03036519,185.79,185.75,14.05526437]
[1755273063217,0.66,185.79,185.75,14.05526437]
[1755273063523,0.66,185.78,185.76,46.02]
[1755273063698,0.66,185.82,185.77,14.05526437]
[1755273063901,19.43631159,185.84,185.78,14.05526437]
[1755273064093,0.66,185.85,185.81,14.05526437]
[1755273064296,5.38061818,185.86,185.81,14.05526437]
[1755273064297,5.38061818,185.86,185.81,46.02]
[1755273064513,5.38061818,185.86,185.71,0.53847396]
[1755273064514,14.05526437,185.82,185.71,0.66]
[1755273064827,0.66,185.86,185.81,14.05526437]
[1755273065024,0.66,185.86,185.82,14.05526437]
[1755273065314,0.66,185.86,185.81,45.98]
[1755273065315,6.03926125,185.9,185.85,14.05526437]
[1755273065506,14.05526437,185.87,185.81,14.05526437]
[1755273065703,0.66,185.92,185.86,14.05526437]
[1755273065924,14.05526437,185.89,185.83,14.05526437]
[1755273066122,14.05526437,185.85,185.83,45.92]
[1755273066431,14.71526437,185.84,185.79,45.9]
[1755273066588,14.71526437,185.83,185.79,45.9]
[1755273066781,32.04155203,185.82,185.7,0.66]
[1755273067014,14.05526437,185.77,185.71,59.93526437]
[1755273067219,14.05526437,185.78,185.71,45.88]
[1755273067425,0.66,185.77,185.71,45.88]
[1755273067585,26.0,185.79,185.71,45.88]
[1755273067785,26.0,185.81,185.78,14.05526437]
[1755273067986,26.0,185.81,185.78,45.84]
[1755273068207,26.0,185.81,185.79,14.05526437]
[1755273068719,26.0,185.81,185.78,59.89526437]
[1755273068925,26.0,185.81,185.78,45.84]
[1755273069085,14.05526437,185.79,185.67,0.66]
[1755273069288,132.56,185.8,185.67,0.66]
[1755273069289,0.66,185.78,185.67,0.66]
[1755273069514,14.05526437,185.77,185.71,14.05526437]
[1755273069713,26.0,185.77,185.7,14.05526437]
[1755273069917,26.0,185.77,185.67,0.66]
[1755273070230,26.0,185.77,185.66,14.05526437]
[1755273070231,0.66,185.76,185.66,14.05526437]
[1755273070536,14.05526437,185.68,185.58,5.41832146]
[1755273070740,5.38647993,185.65,185.6,14.05526437]
[1755273070944,5.38647993,185.65,185.59,59.81526437]
[1755273070945,14.05526437,185.64,185.59,59.81526437]
[1755273071152,5.38647993,185.65,185.59,45.76]
[1755273071153,14.71526437,185.63,185.59,45.76]
[1755273071447,0.66,185.67,185.59,45.76]
[1755273071634,26.0,185.67,185.62,14.05526437]
[1755273071832,14.05526437,185.63,185.59,45.76]
[1755273072020,26.0,185.67,185.61,14.05526437]
[1755273072221,26.0,185.67,185.59,51.14814518]
[1755273072222,26.0,185.67,185.62,14.05526437]
[1755273072444,14.05526437,185.63,185.58,0.03]
[1755273072612,14.05526437,185.63,185.58,14.08526437]
[1755273072823,14.05526437,185.69,185.62,14.05526437]
[1755273073049,26.66,185.7,185.65,14.05526437]
[1755273073345,31.38498684,185.71,185.62,45.7]
[1755273073552,0.66,185.78,185.7,14.05526437]
[1755273073760,0.66,185.78,185.71,45.74]
[1755273074041,14.05526437,185.74,185.71,45.74]
[1755273074270,0.66,185.73,185.71,45.74]
[1755273074421,45.74883992,185.8,185.71,45.74]
[1755273074422,14.05526437,185.75,185.71,45.74]
[1755273074616,0.66,185.75,185.71,45.74]
[1755273074817,20.09913429,185.74,185.71,45.74]
[1755273075042,6.04386992,185.74,185.71,45.74]
[1755273075248,5.38242101,185.79,185.72,14.05526437]
[1755273075426,26.0,185.76,185.72,14.05526437]
[1755273075639,26.0,185.76,185.71,45.74]
[1755273075841,14.72526437,185.75,185.71,45.74]
[1755273076154,14.05526437,185.73,185.71,45.74]
[1755273076315,14.72526437,185.72,185.61,0.7]
[1755273076520,26.67,185.72,185.63,14.05526437]
[1755273076744,26.67,185.72,185.64,14.05526437]
[1755273076935,7.96254983,185.81,185.71,14.05526437]
[1755273077247,14.05526437,185.85,185.79,14.05526437]
[1755273077428,40.05526437,185.82,185.78,45.76]
[1755273077627,14.72526437,185.81,185.78,45.74]
[1755273077836,0.17,185.81,185.78,45.74]
[1755273078164,14.05526437,185.83,185.78,45.74]
[1755273078335,14.05526437,185.82,185.78,45.74]
[1755273078664,19.43561269,185.87,185.79,0.7]
[1755273078839,14.05526437,185.86,185.8,14.05526437]
[1755273079043,0.06,185.88,185.85,14.05526437]
[1755273079355,0.06,185.88,185.84,14.05526437]
[1755273079356,5.43983545,185.88,185.84,14.05526437]
[1755273079562,26.0,185.87,185.84,14.05526437]
[1755273079867,0.06,185.88,185.86,14.05526437]
[1755273080029,5.37548701,186.03,185.9,26.0]
[1755273080225,0.19,186.05,185.99,14.05526437]
[1755273080635,14.05526437,186.07,186.01,14.05526437]
[1755273080856,5.37432149,186.07,186.02,14.05526437]
[1755273081154,1.34599646,186.06,186.02,14.05526437]
[1755273081481,5.62398759,186.09,185.98,0.7]
[1755273081662,19.42925196,186.09,186.03,14.05526437]
[1755273081844,14.05526437,186.04,185.9,0.7]
[1755273082046,45.79,186.08,185.9,46.28]
[1755273082239,0.25,186.07,185.91,0.7]
[1755273082562,26.0,186.01,185.95,14.05526437]
[1755273082734,26.0,186.01,185.97,14.05526437]
[1755273082930,5.37634408,186.0,185.94,0.7]
[1755273083157,5.37634408,186.0,185.96,14.05526437]
[1755273083450,31.37606539,186.01,185.96,14.05526437]
[1755273083653,31.37606539,186.01,185.97,14.05526437]
[1755273083842,26.0,186.01,185.97,14.05526437]
[1755273084156,5.37577641,186.02,185.97,14.05526437]
[1755273084327,5.37577641,186.02,185.91,0.7]
[1755273084328,14.05526437,186.0,185.91,0.7]
[1755273084529,19.43104078,186.02,185.96,14.05526437]
[1755273084827,19.43104078,186.02,185.93,14.05526437]
[1755273084828,19.43189752,185.99,185.93,14.05526437]
[1755273085029,14.05526437,185.97,185.91,0.7]
[1755273085258,5.62663315,185.99,185.9,59.63526437]
[1755273085458,14.05526437,185.98,185.92,14.05526437]
[1755273085780,14.05526437,185.98,185.86,16.160746]
[1755273085781,26.0,185.9,185.83,0.7]
[1755273085958,26.0,185.9,185.86,14.05526437]
[1755273086155,0.25,185.95,185.87,0.7]
[1755273086359,14.05526437,185.9,185.87,0.7]
[1755273086560,26.0,185.96,185.83,14.05526437]
[1755273086758,14.05526437,185.89,185.84,14.05526437]
[1755273086952,26.0,185.92,185.87,14.05526437]
[1755273087151,13.44227155,185.99,185.9,14.05526437]
[1755273087382,14.05526437,185.98,185.93,14.05526437]
[1755273087584,0.25,186.01,185.93,14.05526437]
[1755273087758,26.0,185.96,185.93,14.05526437]
[1755273087951,26.0,185.96,185.94,14.05526437]
[1755273088151,26.0,185.96,185.89,46.1]
[1755273088360,26.0,185.96,185.93,14.05526437]
[1755273088577,14.05526437,185.98,185.93,14.05526437]
[1755273088885,44.42168597,185.98,185.92,18.42168597]
[1755273089088,26.0,185.92,185.76,10.0]
[1755273089247,18.42168597,185.91,185.85,18.42168597]
[1755273089448,26.0,185.94,185.9,18.42168597]
[1755273089760,26.0,185.92,185.89,18.42168597]
[1755273090451,5.37721137,185.97,185.9,18.42168597]
[1755273090452,18.42168597,185.96,185.9,18.42168597]
[1755273090651,5.37721137,185.97,185.9,18.42168597]
[1755273090866,5.37721137,185.97,185.92,18.42168597]
[1755273091155,5.37721137,185.97,185.93,18.42168597]
[1755273091357,26.0,185.96,185.93,0.7]
[1755273091552,0.25,186.02,185.94,18.42168597]
[1755273091778,26.0,185.99,185.92,63.74168597]
[1755273091993,26.0,185.99,185.94,18.42168597]
[1755273092172,5.37605505,186.01,185.95,18.42168597]
[1755273092480,5.37605505,186.01,185.96,18.42168597]
[1755273092860,42.18521696,186.15,185.92,45.32]
[1755273092861,23.79742259,186.03,185.97,19.12168597]
[1755273093053,26.0,186.0,185.97,0.7]
[1755273093250,5.37573662,186.03,185.97,0.7]
[1755273093455,23.79658519,186.05,185.97,0.7]
[1755273093770,26.0,186.02,185.99,18.42168597]
[1755273094064,5.37489922,186.05,185.99,19.12168597]
[1755273094261,26.0,186.02,185.98,18.42168597]
[1755273094469,26.0,186.02,185.95,5.37774621]
[1755273094470,26.0,186.02,185.97,18.42168597]
[1755273094781,5.37574105,186.03,185.98,18.42168597]
[1755273094954,5.37522586,186.04,186.0,18.42168597]
[1755273095160,5.37432149,186.07,186.0,0.7]
[1755273095388,23.79600746,186.07,186.0,0.7]
[1755273095680,18.42168597,186.06,186.0,19.12168597]
[1755273095870,31.37432149,186.07,185.99,45.16]
[1755273095871,18.48168597,186.04,185.99,45.16]
[1755273096075,0.25,186.03,185.99,45.16]
[1755273096685,0.06,186.04,186.02,18.42168597]
[1755273096891,0.06,186.04,185.99,45.16]
[1755273097180,39.39031751,186.15,185.99,45.16]
[1755273097181,18.42168597,186.12,186.03,19.12168597]
[1755273097486,26.0,186.11,186.04,0.7]
[1755273097688,18.48168597,186.15,186.1,18.42168597]
[1755273097861,18.48168597,186.15,186.09,63.68168597]
[1755273098061,44.42168597,186.12,186.09,45.26]
[1755273098373,6.10219698,186.15,186.09,45.26]
[1755273098575,18.42168597,186.1,186.0,26.0]
[1755273098889,18.42168597,186.08,186.02,18.42168597]
[1755273099186,49.7951411,186.1,186.05,18.42168597]
[1755273099382,49.7951411,186.1,186.01,51.35601123]
[1755273099383,49.7951411,186.1,186.04,18.42168597]
[1755273099554,5.37345513,186.1,186.01,45.98]
[1755273099759,5.37230041,186.14,186.09,18.42168597]
[1755273099981,0.06,186.15,186.12,18.42168597]
[1755273100286,26.0,186.14,186.11,18.42168597]
[1755273100466,5.4320496,186.15,186.1,18.42168597]
[1755273100679,18.42168597,186.13,186.1,45.26]
[1755273100862,26.0,186.12,186.1,45.26]
[1755273101062,44.42168597,186.12,186.1,45.26]
[1755273101261,26.0,186.12,186.1,45.26]
[1755273101485,26.67,186.12,186.1,45.26]
[1755273101695,5.37258905,186.13,186.1,45.26]
[1755273101865,23.79427502,186.13,186.1,45.26]
[1755273102062,18.42168597,186.11,186.1,45.26]
[1755273102285,26.0,186.11,186.1,45.26]
[1755273103096,0.06,186.15,186.1,45.26]
[1755273103267,44.42168597,186.14,186.1,45.26]
[1755273103460,18.42168597,186.13,186.1,45.26]
[1755273103664,18.42168597,186.14,186.1,45.26]
[1755273103874,18.42168597,186.13,186.1,45.26]
[1755273104073,18.42168597,186.11,186.03,0.7]
[1755273104273,26.0,186.11,186.03,45.86]
[1755273104471,26.0,186.11,186.04,0.7]
[1755273104772,18.42168597,186.12,186.07,18.42168597]
[1755273105083,5.3731664,186.11,186.06,18.42168597]
[1755273105266,18.42168597,186.08,186.03,45.16]
[1755273105598,26.0,186.08,186.03,64.24168597]
[1755273105763,44.42168597,186.08,186.03,45.82]
[1755273105963,18.42168597,186.07,186.03,45.14]
[1755273106162,44.42168597,186.08,186.03,45.82]
[1755273106461,26.0,186.08,186.03,45.82]
[1755273106664,0.67,186.07,186.03,45.14]
[1755273106862,26.0,186.08,186.03,45.14]
[1755273107083,26.0,186.08,186.03,64.24168597]
[1755273107361,31.3742399,186.08,186.03,64.24168597]
[1755273107567,49.79592587,186.08,186.03,45.82]
[1755273107892,18.42168597,186.06,186.03,45.14]
[1755273108264,31.3742399,186.08,186.03,45.14]
[1755273108592,13.4331411,186.11,186.03,45.14]
[1755273108593,26.0,186.11,186.04,0.68]
[1755273108904,5.3731664,186.11,186.04,0.68]
[1755273109190,5.37293454,186.12,186.04,6.05509331]
[1755273109381,31.37230041,186.14,186.08,18.42168597]
[1755273109570,31.37230041,186.14,186.04,6.05509331]
[1755273109571,31.37230041,186.14,186.09,45.06]
[1755273109887,18.42168597,186.12,186.09,45.06]
[1755273110292,26.0,186.14,186.1,0.68]
[1755273110689,26.0,186.14,186.1,13.95256784]
[1755273111001,26.0,186.14,186.1,0.68]
[1755273111185,0.06,186.15,186.12,13.95256784]
[1755273111387,0.06,186.15,186.14,13.95256784]
[1755273111576,0.06,186.15,186.13,0.68]
[1755273111965,0.06,186.15,186.14,13.95256784]
[1755273112197,0.06,186.15,186.14,14.63256784]
[1755273112379,0.06,186.15,186.1,5.37345465]
[1755273112710,0.06,186.15,186.14,13.95256784]
[1755273113193,0.06,186.15,186.11,6.05291182]
[1755273113194,0.06,186.15,186.13,13.95256784]
[1755273113376,14.62256784,186.14,186.03,39.4]
[1755273113569,0.06,186.1,186.04,45.7]
[1755273113767,0.06,186.1,186.05,0.68]
[1755273113971,0.06,186.1,186.07,13.95256784]
[1755273114170,0.06,186.1,186.04,45.02]
[1755273114593,0.06,186.1,186.05,13.95256784]
[1755273115165,14.01256784,186.1,186.04,45.02]
[1755273115381,13.95256784,186.08,186.03,38.72]
[1755273115608,0.06,186.1,186.04,45.02]
[1755273115789,13.95256784,186.08,186.04,45.02]
[1755273115980,13.95256784,186.05,185.99,0.03]
[1755273116182,13.95256784,186.04,186.0,45.02]
[1755273116801,13.95256784,186.05,186.0,45.02]
[1755273117193,5.37510556,186.05,186.0,45.02]
[1755273117388,13.95256784,186.05,186.0,58.97256784]
[1755273117599,26.0,186.09,186.04,13.95256784]
[1755273117884,26.0,186.09,186.05,45.7]
[1755273118088,13.95256784,186.09,186.05,45.02]
[1755273119314,40.01256784,186.1,186.05,50.39488392]
[1755273119607,13.95256784,186.09,186.05,45.02]
[1755273119796,31.4335517,186.1,186.05,50.3948262]
[1755273119797,40.01256784,186.1,186.05,50.3948262]
[1755273119987,26.06,186.1,186.06,13.95256784]
[1755273120186,26.06,186.1,186.06,0.68]
[1755273120414,13.95256784,186.09,186.05,45.02]
[1755273120614,13.95256784,186.06,185.99,0.71]
[1755273120796,26.0,186.05,186.0,45.02]
[1755273120988,13.95256784,186.03,186.0,45.02]
[1755273121188,19.32806317,186.03,186.0,45.02]
[1755273121400,26.0,186.0,185.99,0.03]
[1755273121728,0.67,186.02,185.99,45.05]
[1755273122019,5.37524319,186.04,185.99,45.05]
[1755273122020,13.95256784,186.03,185.99,45.05]
[1755273122188,13.95256784,186.04,185.99,59.00256784]
[1755273122390,5.37491707,186.05,185.99,45.05]
[1755273122591,5.37491707,186.05,185.99,59.00256784]
[1755273122592,13.95256784,186.05,185.99,59.00256784]
[1755273123194,31.37463905,186.06,185.99,59.00256784]
[1755273123392,31.37463905,186.06,185.99,0.03]
[1755273123393,13.95256784,186.0,185.99,0.03]
[1755273123600,13.95256784,186.0,185.99,45.05]
[1755273123918,4.33387149,186.05,185.99,45.05]
[1755273124131,26.0,186.03,185.99,59.00256784]
[1755273124421,26.0,186.03,185.99,59.68256784]
[1755273124722,5.37403267,186.08,186.01,13.95256784]
[1755273124887,13.95256784,186.02,185.99,0.03]
[1755273125090,26.0,186.05,186.0,58.97256784]
[1755273125292,39.95256784,186.06,186.0,59.65256784]
[1755273125528,31.37461305,186.06,186.0,45.7]
[1755273125723,45.32718089,186.06,186.0,59.65256784]
[1755273125894,31.37472468,186.06,186.01,13.95256784]
[1755273126087,13.95256784,186.05,186.0,45.7]
[1755273126418,45.32729252,186.06,186.01,14.63256784]
[1755273126623,4.39387149,186.1,186.05,13.95256784]
[1755273126814,3.98225184,186.09,186.06,45.7]
[1755273126987,19.38617601,186.1,186.07,45.02]
[1755273127191,3.98419969,186.09,186.07,45.02]
[1755273127433,19.38607754,186.1,186.07,45.02]
[1755273127599,18.60616768,186.09,186.07,45.02]
[1755273127810,3.98359984,186.08,186.07,45.02]
[1755273128000,26.0,186.09,186.07,45.02]
[1755273128203,0.06,186.1,186.07,45.02]
[1755273128415,9.41726665,186.1,186.07,45.02]
[1755273128724,3.98123158,186.09,186.07,45.02]
[1755273128897,0.06,186.1,186.08,0.68]
[1755273129224,0.06,186.1,186.07,58.97256784]
[1755273129225,13.95256784,186.09,186.07,45.02]
[1755273129394,5.43350187,186.1,186.08,14.63256784]
[1755273129395,0.06,186.1,186.08,14.63256784]
[1755273129718,0.06,186.1,186.09,14.63256784]
[1755273130644,0.06,186.1,186.09,0.68]
[1755273131238,0.06,186.1,186.09,14.63256784]
[1755273131462,0.06,186.1,186.09,0.68]
[1755273131616,0.06,186.1,186.09,14.63256784]
[1755273131815,0.06,186.1,186.09,13.95256784]
[1755273132017,0.06,186.1,186.08,5.37395678]
[1755273132018,14.01256784,186.1,186.03,0.68]
[1755273132334,0.73,186.1,186.04,45.0]
[1755273132534,0.06,186.1,186.08,13.95256784]
[1755273132845,0.06,186.1,186.09,45.0]
[1755273135343,14.73256784,186.1,186.03,0.7]
[1755273135642,26.78,186.1,186.04,45.0]
[1755273135861,26.06,186.1,186.04,45.0]
[1755273136138,0.06,186.1,186.09,13.95256784]
[1755273136311,0.06,186.1,186.09,45.7]
[1755273136513,0.06,186.1,186.09,59.65256784]
[1755273137339,0.06,186.1,186.09,65.02631172]
[1755273138244,0.06,186.1,186.06,26.7]
[1755273138430,0.06,186.1,186.09,13.95256784]
[1755273138940,0.06,186.1,186.09,14.65256784]
[1755273139646,0.06,186.1,186.09,0.7]
[1755273139850,0.06,186.1,186.09,44.98]
[1755273140220,0.06,186.1,186.09,58.93256784]
[1755273140632,0.06,186.1,186.09,44.98]
[1755273141851,0.06,186.1,185.99,0.03]
[1755273141852,26.0,186.09,185.99,0.73]
[1755273142039,13.95256784,186.04,186.02,44.98]
[1755273142431,0.72,186.08,186.02,44.98]
[1755273142851,3.98708981,186.07,186.05,13.95256784]
[1755273143054,3.58872382,186.08,186.06,58.91256784]
[1755273143229,3.64872382,186.1,186.07,44.96]
[1755273143550,3.64747638,186.1,186.09,13.95256784]
[1755273143721,0.06,186.1,186.09,13.95256784]
[1755273143921,0.06,186.1,186.09,14.65256784]
[1755273144343,0.06,186.15,186.09,14.65256784]
[1755273144533,0.06,186.15,186.14,13.95256784]
[1755273144857,0.06,186.15,186.14,44.96]
[1755273145229,26.0,186.12,186.02,0.7]
[1755273145428,5.37374388,186.09,186.04,13.95256784]
[1755273145660,9.68156312,186.09,186.03,44.96]
[1755273145848,6.09374388,186.09,186.03,44.96]
[1755273146024,9.68156312,186.09,186.03,44.96]
[1755273146359,13.95256784,186.05,186.03,44.96]
[1755273146655,26.0,186.06,186.03,44.96]
[1755273146828,26.72,186.06,186.03,44.96]
[1755273147029,13.95256784,186.07,186.03,44.96]
[1755273147244,30.29706777,186.06,186.03,44.96]
[1755273147445,45.32728132,186.06,186.03,44.96]
[1755273147649,31.37471348,186.06,186.03,44.96]
[1755273147839,26.0,186.06,186.04,13.95256784]
[1755273148147,26.0,186.09,186.05,13.95256784]
[1755273148351,19.32573424,186.11,186.06,58.91256784]
[1755273148552,17.52546524,186.1,186.06,44.96]
[1755273148765,39.95256784,186.08,186.06,44.96]
[1755273148962,18.24546524,186.07,186.06,44.96]
[1755273149321,26.0,186.04,186.01,38.72]
[1755273149556,6.09547707,186.03,186.0,0.03]
[1755273149853,13.95256784,186.02,186.0,44.99]
[1755273150055,13.95256784,186.06,186.01,13.95256784]
[1755273150232,3.57455727,186.05,186.01,13.95256784]
[1755273150557,26.0,186.06,186.04,13.95256784]
[1755273150724,26.0,186.06,186.05,44.96]
[1755273150927,5.3731664,186.11,186.05,44.96]
[1755273151540,6.09294255,186.12,186.07,13.95256784]
[1755273151729,3.5749618,186.14,186.09,13.95256784]
[1755273151926,13.95256784,186.13,186.1,44.94]
[1755273152146,13.95256784,186.11,186.1,44.94]
[1755273152350,18.24627185,186.11,186.05,13.95256784]
[1755273152551,3.57370401,186.1,186.07,13.95256784]
[1755273152729,3.57370401,186.1,186.06,44.96]
[1755273152936,17.52627185,186.1,186.06,44.96]
[1755273153155,14.67256784,186.1,186.06,44.96]
[1755273153447,0.72,186.1,186.06,58.91256784]
[1755273153655,4.29513427,186.1,186.06,58.91256784]
[1755273153832,0.06,186.15,186.07,0.7]
[1755273154031,0.06,186.15,186.11,13.95256784]
[1755273154231,0.06,186.15,186.12,58.89256784]
[1755273154435,0.06,186.15,186.13,13.95256784]
[1755273154632,0.06,186.15,186.12,45.64]
[1755273154855,0.72,186.14,186.12,44.94]
[1755273155032,14.67256784,186.13,186.12,44.94]
[1755273155232,44.24901023,186.13,186.12,44.94]
[1755273155633,49.62159928,186.13,186.12,44.94]
[1755273155851,53.59742732,186.13,186.12,44.94]
[1755273156241,53.59742732,186.13,186.09,44.94]
[1755273156572,13.95256784,186.1,186.09,44.94]
[1755273156755,40.67256784,186.1,186.05,44.94]
[1755273156930,13.95256784,186.07,186.05,44.94]
[1755273157544,5.37461034,186.06,186.05,44.94]
[1755273158932,26.0,186.07,186.05,44.94]
[1755273159251,31.37434857,186.07,186.05,44.94]
[1755273160247,13.95256784,186.06,186.05,44.94]